[Event "Betsys MČR v online bleskovém šachu 2021"]
[Site "Chess.com"]
[Date "2021.04.17"]
[Round "5"]
[White "svTomas"]
[Black "Devasales"]
[Result "0-1"]
[WhiteElo "1424"]
[BlackElo "1869"]
[TimeControl "180+1"]
[EndTime "9:45:28 PDT"]
[Termination "Uživatel Devasales zvítězil po vzdání soupeře"]

1. e4 {[%clk 0:03:00.9]} 1... c5 {[%clk 0:02:59.3]} 2. Nf3 {[%clk 0:03:00.1]}
2... d6 {[%clk 0:02:58.7]} 3. d4 {[%clk 0:03:00.3]} 3... cxd4 {[%clk 0:02:58.3]}
4. Nxd4 {[%clk 0:03:00.6]} 4... Nf6 {[%clk 0:02:57.3]} 5. Nc3 {[%clk 0:02:59.2]}
5... g6 {[%clk 0:02:56.7]} 6. Bc4 {[%clk 0:02:58.6]} 6... Bg7 {[%clk 0:02:55]}
7. Bb3 {[%clk 0:02:58.2]} 7... O-O {[%clk 0:02:53.9]} 8. h3 {[%clk 0:02:51.2]}
8... Nbd7 {[%clk 0:02:38.9]} 9. f4 {[%clk 0:02:49.3]} 9... e5 {[%clk 0:02:30.9]}
10. Nf3 {[%clk 0:02:47.6]} 10... Qb6 {[%clk 0:02:25.8]} 11. Qe2 {[%clk
0:02:39.8]} 11... Nh5 {[%clk 0:02:22]} 12. Be3 {[%clk 0:02:37.2]} 12... Qd8
{[%clk 0:02:17.8]} 13. Nd5 {[%clk 0:01:37.9]} 13... Ng3 {[%clk 0:02:06.2]} 14.
Qf2 {[%clk 0:01:36.1]} 14... Nxh1 {[%clk 0:02:05.1]} 15. Qg1 {[%clk 0:01:34.9]}
15... exf4 {[%clk 0:02:04.5]} 16. Bxf4 {[%clk 0:01:33.2]} 16... Bxb2 {[%clk
0:01:52.9]} 17. Rb1 {[%clk 0:01:32.5]} 17... Bg7 {[%clk 0:01:41.7]} 18. Qxh1
{[%clk 0:01:31.1]} 18... Nf6 {[%clk 0:01:29.9]} 19. Bg5 {[%clk 0:01:23.2]} 19...
Re8 {[%clk 0:01:19.4]} 20. Kf2 {[%clk 0:01:18.9]} 20... Nxe4+ {[%clk 0:01:15.1]}
21. Kg1 {[%clk 0:01:07.9]} 21... Nxg5 {[%clk 0:01:13.2]} 22. Nxg5 {[%clk
0:01:07.8]} 22... Qxg5 {[%clk 0:01:11.3]} 23. Rf1 {[%clk 0:01:05.2]} 23... Be6
{[%clk 0:01:08.1]} 24. Nc7 {[%clk 0:01:01]} 24... Qc5+ {[%clk 0:01:00]} 0-1

[Event "Betsys MČR v online bleskovém šachu 2021"]
[Site "Chess.com"]
[Date "2021.04.17"]
[Round "5"]
[White "Zavurka1975"]
[Black "TCTCGTGCTATG"]
[Result "1-0"]
[WhiteElo "2215"]
[BlackElo "1922"]
[TimeControl "180+1"]
[EndTime "9:45:31 PDT"]
[Termination "Uživatel Zavurka1975 zvítězil po vzdání soupeře"]

1. d4 {[%clk 0:03:00.9]} 1... Nf6 {[%clk 0:02:59.4]} 2. Nf3 {[%clk 0:03:01]}
2... g6 {[%clk 0:02:58.7]} 3. Bf4 {[%clk 0:03:00.4]} 3... Bg7 {[%clk 0:02:58.9]}
4. e3 {[%clk 0:03:00.7]} 4... O-O {[%clk 0:02:58.8]} 5. h3 {[%clk 0:03:01.2]}
5... c5 {[%clk 0:02:58.8]} 6. c3 {[%clk 0:03:00.1]} 6... cxd4 {[%clk 0:02:58.7]}
7. exd4 {[%clk 0:02:59.8]} 7... d6 {[%clk 0:02:58.7]} 8. Be2 {[%clk 0:02:58.6]}
8... Nc6 {[%clk 0:02:58.9]} 9. O-O {[%clk 0:02:58.4]} 9... Qa5 {[%clk
0:02:55.1]} 10. Nbd2 {[%clk 0:02:56.7]} 10... a6 {[%clk 0:02:49.9]} 11. Nc4
{[%clk 0:02:55.3]} 11... Qc7 {[%clk 0:02:49.2]} 12. a4 {[%clk 0:02:54.3]} 12...
Bd7 {[%clk 0:02:45.2]} 13. Re1 {[%clk 0:02:49.7]} 13... b5 {[%clk 0:02:40.4]}
14. axb5 {[%clk 0:02:41.1]} 14... axb5 {[%clk 0:02:41.3]} 15. Na3 {[%clk
0:02:39.8]} 15... b4 {[%clk 0:02:37.2]} 16. Nb5 {[%clk 0:02:37.1]} 16... Qb7
{[%clk 0:02:36.7]} 17. c4 {[%clk 0:02:22.2]} 17... d5 {[%clk 0:02:22.9]} 18. c5
{[%clk 0:01:59.7]} 18... Na5 {[%clk 0:02:12.3]} 19. Nc7 {[%clk 0:01:52.1]} 19...
Ra7 {[%clk 0:02:11.2]} 20. Bf1 {[%clk 0:01:21.2]} 20... e6 {[%clk 0:01:55.7]}
21. Qe2 {[%clk 0:01:09.7]} 21... Nc4 {[%clk 0:01:44.1]} 22. b3 {[%clk
0:01:02.5]} 22... Rxa1 {[%clk 0:01:38.7]} 23. Rxa1 {[%clk 0:01:01.3]} 23... Na3
{[%clk 0:01:38.8]} 24. Qa6 {[%clk 0:00:55.1]} 24... Qxa6 {[%clk 0:01:27.6]} 25.
Nxa6 {[%clk 0:00:54.4]} 25... Nc2 {[%clk 0:01:22.6]} 26. Rc1 {[%clk 0:00:50.5]}
26... Na3 {[%clk 0:01:14.2]} 27. Nxb4 {[%clk 0:00:49.3]} 27... Rb8 {[%clk
0:01:11.7]} 28. Bxb8 {[%clk 0:00:47.8]} 1-0

[Event "Betsys MČR v online bleskovém šachu 2021"]
[Site "Chess.com"]
[Date "2021.04.17"]
[Round "5"]
[White "SajdlJosef"]
[Black "MatejKopecky13"]
[Result "1-0"]
[WhiteElo "1867"]
[BlackElo "1510"]
[TimeControl "180+1"]
[EndTime "9:45:32 PDT"]
[Termination "Uživatel SajdlJosef zvítězil matem"]

1. d4 {[%clk 0:03:00.9]} 1... Nf6 {[%clk 0:02:58.4]} 2. Nf3 {[%clk 0:03:00]}
2... d6 {[%clk 0:02:54.8]} 3. Bf4 {[%clk 0:02:59.4]} 3... g6 {[%clk 0:02:53]} 4.
e3 {[%clk 0:02:58.3]} 4... Bg7 {[%clk 0:02:51.9]} 5. Nbd2 {[%clk 0:02:54.4]}
5... Nbd7 {[%clk 0:02:51.9]} 6. Bc4 {[%clk 0:02:52.8]} 6... O-O {[%clk 0:02:49]}
7. O-O {[%clk 0:02:51.1]} 7... Re8 {[%clk 0:02:48.9]} 8. Bxf7+ {[%clk
0:02:47.6]} 8... Kf8 {[%clk 0:02:45.5]} 9. Bxe8 {[%clk 0:02:45.8]} 9... Qxe8
{[%clk 0:02:45.5]} 10. Nc4 {[%clk 0:02:42.1]} 10... Nb6 {[%clk 0:02:44]} 11.
Nxb6 {[%clk 0:02:40.2]} 11... axb6 {[%clk 0:02:44.9]} 12. c4 {[%clk 0:02:33]}
12... Bf5 {[%clk 0:02:42.3]} 13. Nh4 {[%clk 0:02:28.4]} 13... Bg4 {[%clk
0:02:38.8]} 14. Qb3 {[%clk 0:02:14.5]} 14... h6 {[%clk 0:02:34.1]} 15. h3 {[%clk
0:02:04.2]} 15... Be6 {[%clk 0:02:32.1]} 16. d5 {[%clk 0:02:00.3]} 16... Bxd5
{[%clk 0:02:15.5]} 17. cxd5 {[%clk 0:01:58.2]} 17... g5 {[%clk 0:02:15.9]} 18.
Nf5 {[%clk 0:01:53.5]} 18... gxf4 {[%clk 0:02:13.1]} 19. Nxg7 {[%clk 0:01:52.3]}
19... Kxg7 {[%clk 0:02:14]} 20. exf4 {[%clk 0:01:51.8]} 20... Nh5 {[%clk
0:02:12.6]} 21. g3 {[%clk 0:01:49.7]} 21... Qg6 {[%clk 0:02:10.9]} 22. Kh2
{[%clk 0:01:48.7]} 22... Kh7 {[%clk 0:02:08.9]} 23. Qc3 {[%clk 0:01:46.7]} 23...
Rg8 {[%clk 0:02:07.2]} 24. Rg1 {[%clk 0:01:42.3]} 24... Qe4 {[%clk 0:01:57]} 25.
Rae1 {[%clk 0:01:36.5]} 25... Qxd5 {[%clk 0:01:45.7]} 26. Rxe7+ {[%clk
0:01:35.2]} 26... Rg7 {[%clk 0:01:45.9]} 27. Qxc7 {[%clk 0:01:30]} 27... Rxe7
{[%clk 0:01:43.6]} 28. Qxe7+ {[%clk 0:01:28.2]} 28... Ng7 {[%clk 0:01:44.3]} 29.
Re1 {[%clk 0:01:24.8]} 29... Qc5 {[%clk 0:01:43.7]} 30. Qe4+ {[%clk 0:01:22.4]}
30... Kh8 {[%clk 0:01:39.8]} 31. Qe3 {[%clk 0:01:20.6]} 31... Qc2 {[%clk
0:01:35.7]} 32. Rc1 {[%clk 0:01:18.6]} 32... Qxb2 {[%clk 0:01:31.1]} 33. Rc8+
{[%clk 0:01:15.9]} 33... Ne8 {[%clk 0:01:31.2]} 34. Rxe8+ {[%clk 0:01:12.2]}
34... Kg7 {[%clk 0:01:32]} 35. Qe7+ {[%clk 0:01:10.3]} 35... Kg6 {[%clk
0:01:31.9]} 36. Rg8+ {[%clk 0:01:09]} 36... Kf5 {[%clk 0:01:31.5]} 37. Rf8+
{[%clk 0:01:05.8]} 37... Kg6 {[%clk 0:01:29.5]} 38. f5+ {[%clk 0:01:01.5]} 38...
Kh5 {[%clk 0:01:25.8]} 39. g4# {[%clk 0:00:56.7]} 1-0

[Event "Betsys MČR v online bleskovém šachu 2021"]
[Site "Chess.com"]
[Date "2021.04.17"]
[Round "5"]
[White "David_Mic"]
[Black "l_pavlasek"]
[Result "1/2-1/2"]
[WhiteElo "1981"]
[BlackElo "1686"]
[TimeControl "180+1"]
[EndTime "9:45:33 PDT"]
[Termination "Remíza opakováním pozice"]

1. e4 {[%clk 0:03:00.9]} 1... c5 {[%clk 0:02:57.5]} 2. Nf3 {[%clk 0:03:00.6]}
2... Nc6 {[%clk 0:02:57.6]} 3. Bb5 {[%clk 0:03:00]} 3... d6 {[%clk 0:02:55.2]}
4. c3 {[%clk 0:02:57.8]} 4... Bd7 {[%clk 0:02:54.5]} 5. O-O {[%clk 0:02:56.4]}
5... g6 {[%clk 0:02:54.5]} 6. d4 {[%clk 0:02:55.9]} 6... cxd4 {[%clk 0:02:54]}
7. cxd4 {[%clk 0:02:55.6]} 7... Bg7 {[%clk 0:02:52.8]} 8. Nc3 {[%clk 0:02:53.9]}
8... a6 {[%clk 0:02:52.3]} 9. Bc4 {[%clk 0:02:46.6]} 9... e6 {[%clk 0:02:51.1]}
10. d5 {[%clk 0:02:43.4]} 10... Na5 {[%clk 0:02:33.6]} 11. Bd3 {[%clk
0:02:24.2]} 11... b5 {[%clk 0:02:16.9]} 12. dxe6 {[%clk 0:02:14.7]} 12... Bxe6
{[%clk 0:02:16.2]} 13. Bf4 {[%clk 0:02:13.4]} 13... Ne7 {[%clk 0:02:03.9]} 14.
Rc1 {[%clk 0:01:54.2]} 14... O-O {[%clk 0:02:02.2]} 15. Qd2 {[%clk 0:01:37.2]}
15... Nc4 {[%clk 0:01:48.8]} 16. Bxc4 {[%clk 0:01:36.1]} 16... Bxc4 {[%clk
0:01:48.3]} 17. Rfd1 {[%clk 0:01:34.7]} 17... Nc8 {[%clk 0:01:09.9]} 18. Bxd6
{[%clk 0:01:27.1]} 18... Nxd6 {[%clk 0:01:09.1]} 19. Qxd6 {[%clk 0:01:26.7]}
19... Qxd6 {[%clk 0:01:09.1]} 20. Rxd6 {[%clk 0:01:26.3]} 20... Bxc3 {[%clk
0:01:08]} 21. Rxc3 {[%clk 0:01:21.3]} 21... Bxa2 {[%clk 0:01:05.6]} 22. Ra3
{[%clk 0:01:20.4]} 22... Be6 {[%clk 0:00:57.6]} 23. Raxa6 {[%clk 0:01:17.9]}
23... Rac8 {[%clk 0:00:56.9]} 24. Rac6 {[%clk 0:01:15.8]} 24... Ra8 {[%clk
0:00:55.3]} 25. Ra6 {[%clk 0:01:07.3]} 25... Rac8 {[%clk 0:00:54.8]} 26. Rac6
{[%clk 0:00:57]} 26... Ra8 {[%clk 0:00:54.2]} 27. Ra6 {[%clk 0:00:56.9]} 1/2-1/2

[Event "Betsys MČR v online bleskovém šachu 2021"]
[Site "Chess.com"]
[Date "2021.04.17"]
[Round "5"]
[White "handlovskyjachym"]
[Black "zdenav"]
[Result "0-1"]
[WhiteElo "1361"]
[BlackElo "1818"]
[TimeControl "180+1"]
[EndTime "9:45:33 PDT"]
[Termination "Uživatel zdenav zvítězil na čas"]

1. e4 {[%clk 0:03:00.9]} 1... e5 {[%clk 0:02:59.9]} 2. Nf3 {[%clk 0:02:59.9]}
2... Nf6 {[%clk 0:02:59.6]} 3. Bc4 {[%clk 0:02:52.1]} 3... Nxe4 {[%clk
0:02:58.4]} 4. Qe2 {[%clk 0:02:48.4]} 4... d5 {[%clk 0:02:57.6]} 5. Bd3 {[%clk
0:02:44.2]} 5... Nc5 {[%clk 0:02:55.7]} 6. Qxe5+ {[%clk 0:02:40.5]} 6... Qe7
{[%clk 0:02:50.8]} 7. Qxe7+ {[%clk 0:02:35.6]} 7... Bxe7 {[%clk 0:02:50.3]} 8.
Bb5+ {[%clk 0:02:28.1]} 8... c6 {[%clk 0:02:49.7]} 9. Bd3 {[%clk 0:02:27.6]}
9... Nxd3+ {[%clk 0:02:48.8]} 10. cxd3 {[%clk 0:02:27.2]} 10... Bf5 {[%clk
0:02:48.6]} 11. d4 {[%clk 0:02:22.4]} 11... Nd7 {[%clk 0:02:44.4]} 12. O-O
{[%clk 0:02:21.2]} 12... O-O {[%clk 0:02:43.1]} 13. Nc3 {[%clk 0:02:18]} 13...
Bf6 {[%clk 0:02:41.9]} 14. b3 {[%clk 0:02:14]} 14... Bg4 {[%clk 0:02:39.8]} 15.
Re1 {[%clk 0:02:02.5]} 15... Bxf3 {[%clk 0:02:37.9]} 16. gxf3 {[%clk 0:02:02.6]}
16... Bxd4 {[%clk 0:02:35]} 17. Bb2 {[%clk 0:01:52.2]} 17... Bf6 {[%clk
0:02:26]} 18. Re2 {[%clk 0:01:48.3]} 18... Rfe8 {[%clk 0:02:25.3]} 19. Rae1
{[%clk 0:01:47.6]} 19... Rxe2 {[%clk 0:02:25]} 20. Rxe2 {[%clk 0:01:47.5]} 20...
Nc5 {[%clk 0:02:23.5]} 21. Ba3 {[%clk 0:01:41.9]} 21... Ne6 {[%clk 0:02:22.6]}
22. Na4 {[%clk 0:01:33.4]} 22... Nd4 {[%clk 0:02:11.4]} 23. Re1 {[%clk
0:01:27.5]} 23... Nxf3+ {[%clk 0:02:09]} 24. Kf1 {[%clk 0:01:24.2]} 24... Nxe1
{[%clk 0:02:08.1]} 25. Kxe1 {[%clk 0:01:24]} 25... b6 {[%clk 0:02:07.7]} 26. Nc3
{[%clk 0:01:22.9]} 26... Re8+ {[%clk 0:02:05]} 27. Kd1 {[%clk 0:01:22.5]} 27...
Bd4 {[%clk 0:01:57.3]} 28. Ne2 {[%clk 0:01:20]} 28... Bxf2 {[%clk 0:01:56.4]}
0-1

[Event "Betsys MČR v online bleskovém šachu 2021"]
[Site "Chess.com"]
[Date "2021.04.17"]
[Round "5"]
[White "Dvacetsekund"]
[Black "Pekibeast"]
[Result "1/2-1/2"]
[WhiteElo "2190"]
[BlackElo "1879"]
[TimeControl "180+1"]
[EndTime "9:45:36 PDT"]
[Termination "Remíza dohodou"]

1. e4 {[%clk 0:03:00.9]} 1... e6 {[%clk 0:03:00]} 2. d4 {[%clk 0:02:59.9]} 2...
d5 {[%clk 0:02:59.3]} 3. Nc3 {[%clk 0:02:57.4]} 3... dxe4 {[%clk 0:02:58.8]} 4.
Nxe4 {[%clk 0:02:55.5]} 4... Nf6 {[%clk 0:02:58.9]} 5. Bg5 {[%clk 0:02:50.1]}
5... Be7 {[%clk 0:02:58.7]} 6. Bxf6 {[%clk 0:02:49]} 6... Bxf6 {[%clk
0:02:58.7]} 7. Nf3 {[%clk 0:02:45.4]} 7... Nd7 {[%clk 0:02:57]} 8. Bd3 {[%clk
0:02:42.1]} 8... h6 {[%clk 0:02:56.4]} 9. c3 {[%clk 0:02:37.7]} 9... b6 {[%clk
0:02:55.7]} 10. Qe2 {[%clk 0:02:36.4]} 10... Bb7 {[%clk 0:02:54.9]} 11. O-O-O
{[%clk 0:02:36.1]} 11... O-O {[%clk 0:02:53.9]} 12. Bc2 {[%clk 0:02:35.4]} 12...
Rc8 {[%clk 0:02:48]} 13. Kb1 {[%clk 0:02:32.3]} 13... Qe7 {[%clk 0:02:43.3]} 14.
Rhg1 {[%clk 0:02:08.1]} 14... Bxe4 {[%clk 0:02:39]} 15. Qxe4 {[%clk 0:02:06.2]}
15... g6 {[%clk 0:02:39.4]} 16. g4 {[%clk 0:02:00.1]} 16... c5 {[%clk
0:02:35.3]} 17. h4 {[%clk 0:01:41.7]} 17... e5 {[%clk 0:02:27]} 18. h5 {[%clk
0:01:23.4]} 18... exd4 {[%clk 0:02:23.5]} 19. Qxe7 {[%clk 0:01:00.2]} 19... Bxe7
{[%clk 0:02:22.5]} 20. cxd4 {[%clk 0:00:59.9]} 20... cxd4 {[%clk 0:02:17.7]} 21.
hxg6 {[%clk 0:00:54.3]} 21... fxg6 {[%clk 0:02:17.7]} 22. Nxd4 {[%clk
0:00:54.1]} 22... Rxf2 {[%clk 0:02:09.2]} 23. Bxg6 {[%clk 0:00:47.4]} 23... Ne5
{[%clk 0:02:06.1]} 24. Bf5 {[%clk 0:00:43.7]} 24... Rd8 {[%clk 0:02:02.2]} 25.
b3 {[%clk 0:00:30.7]} 25... Bc5 {[%clk 0:01:58.1]} 26. Nc2 {[%clk 0:00:19.9]}
26... Rf8 {[%clk 0:01:49.3]} 27. Rgf1 {[%clk 0:00:15.7]} 27... Rxf1 {[%clk
0:01:44.1]} 28. Rxf1 {[%clk 0:00:16.6]} 28... Kg7 {[%clk 0:01:44.6]} 29. Re1
{[%clk 0:00:15.3]} 29... Kf6 {[%clk 0:01:42.9]} 1/2-1/2

[Event "Betsys MČR v online bleskovém šachu 2021"]
[Site "Chess.com"]
[Date "2021.04.17"]
[Round "5"]
[White "svobodan"]
[Black "VOJTASEK2009"]
[Result "1-0"]
[WhiteElo "1656"]
[BlackElo "1280"]
[TimeControl "180+1"]
[EndTime "9:45:37 PDT"]
[Termination "Uživatel svobodan zvítězil matem"]

1. e4 {[%clk 0:03:00.9]} 1... e5 {[%clk 0:02:59.5]} 2. Nf3 {[%clk 0:03:00.3]}
2... Nc6 {[%clk 0:02:59]} 3. Nc3 {[%clk 0:03:00.8]} 3... Bb4 {[%clk 0:02:56.6]}
4. d4 {[%clk 0:02:59.7]} 4... exd4 {[%clk 0:02:55.9]} 5. Nxd4 {[%clk 0:02:59.5]}
5... d6 {[%clk 0:02:54.1]} 6. Be3 {[%clk 0:02:54.9]} 6... Nf6 {[%clk 0:02:49.5]}
7. Nxc6 {[%clk 0:02:54.5]} 7... bxc6 {[%clk 0:02:47.2]} 8. Bd3 {[%clk
0:02:54.9]} 8... d5 {[%clk 0:02:39.8]} 9. exd5 {[%clk 0:02:47.3]} 9... Nxd5
{[%clk 0:02:33.4]} 10. O-O {[%clk 0:02:36.4]} 10... O-O {[%clk 0:02:27.8]} 11.
Nxd5 {[%clk 0:02:32]} 11... Qxd5 {[%clk 0:02:19]} 12. a3 {[%clk 0:02:28.2]}
12... Bd6 {[%clk 0:02:13.4]} 13. Qe2 {[%clk 0:02:14.4]} 13... Qe5 {[%clk
0:02:06.5]} 14. f4 {[%clk 0:01:56.3]} 14... Qf6 {[%clk 0:01:55.6]} 15. Qh5
{[%clk 0:01:51.4]} 15... h6 {[%clk 0:01:50.2]} 16. c3 {[%clk 0:01:44.7]} 16...
Rd8 {[%clk 0:01:34.6]} 17. Bd4 {[%clk 0:01:41.9]} 17... Qe7 {[%clk 0:01:03.6]}
18. Rae1 {[%clk 0:01:38.4]} 18... Be6 {[%clk 0:00:54.3]} 19. f5 {[%clk
0:01:35.9]} 19... Rf8 {[%clk 0:00:33.2]} 20. fxe6 {[%clk 0:01:30.1]} 20... fxe6
{[%clk 0:00:31.9]} 21. Qg6 {[%clk 0:01:25.6]} 21... Rxf1+ {[%clk 0:00:23.5]} 22.
Rxf1 {[%clk 0:01:25.2]} 22... Qg5 {[%clk 0:00:14.4]} 23. Qh7# {[%clk 0:01:24.5]}
1-0

[Event "Betsys MČR v online bleskovém šachu 2021"]
[Site "Chess.com"]
[Date "2021.04.17"]
[Round "5"]
[White "Patriktesko"]
[Black "patrikvagner"]
[Result "1/2-1/2"]
[WhiteElo "2077"]
[BlackElo "1785"]
[TimeControl "180+1"]
[EndTime "9:45:43 PDT"]
[Termination "Remíza opakováním pozice"]

1. d4 {[%clk 0:03:00.9]} 1... d5 {[%clk 0:02:59.6]} 2. Nf3 {[%clk 0:03:00.8]}
2... Nf6 {[%clk 0:02:58.9]} 3. Bg5 {[%clk 0:03:00.5]} 3... e6 {[%clk 0:02:57.6]}
4. e3 {[%clk 0:03:00.3]} 4... Be7 {[%clk 0:02:56.6]} 5. c3 {[%clk 0:03:00.5]}
5... c5 {[%clk 0:02:55.9]} 6. Nbd2 {[%clk 0:02:59.3]} 6... Nc6 {[%clk
0:02:55.6]} 7. Bd3 {[%clk 0:02:59]} 7... Bd7 {[%clk 0:02:54]} 8. O-O {[%clk
0:02:58.4]} 8... c4 {[%clk 0:02:52.6]} 9. Be2 {[%clk 0:02:57.2]} 9... h6 {[%clk
0:02:52]} 10. Bf4 {[%clk 0:02:56.1]} 10... O-O {[%clk 0:02:49.1]} 11. b4 {[%clk
0:02:52]} 11... b5 {[%clk 0:02:47.6]} 12. a4 {[%clk 0:02:51.1]} 12... a6 {[%clk
0:02:46.8]} 13. axb5 {[%clk 0:02:50.4]} 13... axb5 {[%clk 0:02:46.7]} 14. Ne5
{[%clk 0:02:50.4]} 14... Nxe5 {[%clk 0:02:44.7]} 15. Bxe5 {[%clk 0:02:51.3]}
15... Qb6 {[%clk 0:02:43.6]} 16. Bxf6 {[%clk 0:02:50.1]} 16... Bxf6 {[%clk
0:02:42.8]} 17. Qc2 {[%clk 0:02:49.9]} 17... Qb7 {[%clk 0:02:39.3]} 18. Qb2
{[%clk 0:02:49.4]} 18... Rxa1 {[%clk 0:02:35.6]} 19. Rxa1 {[%clk 0:02:48.6]}
19... Ra8 {[%clk 0:02:35.3]} 20. Bf3 {[%clk 0:02:43.2]} 20... Ra6 {[%clk
0:02:28.5]} 21. e4 {[%clk 0:02:39]} 21... Bc6 {[%clk 0:02:23.8]} 22. exd5 {[%clk
0:02:37.3]} 22... exd5 {[%clk 0:02:23.7]} 23. g3 {[%clk 0:02:32.5]} 23... Qa8
{[%clk 0:02:21.5]} 24. Rxa6 {[%clk 0:02:30.9]} 24... Qxa6 {[%clk 0:02:21.1]} 25.
Bg4 {[%clk 0:02:27.2]} 25... Qa4 {[%clk 0:02:14.5]} 26. Nf1 {[%clk 0:02:21.3]}
26... Kf8 {[%clk 0:01:52.6]} 27. Ne3 {[%clk 0:02:16.6]} 27... Qa8 {[%clk
0:01:43.4]} 28. Bf3 {[%clk 0:02:13.7]} 28... Bg5 {[%clk 0:01:39.2]} 29. Qd2
{[%clk 0:02:06.4]} 29... Bxe3 {[%clk 0:01:37.4]} 30. Qxe3 {[%clk 0:02:05.2]}
30... Qe8 {[%clk 0:01:37.4]} 31. Kg2 {[%clk 0:01:59.1]} 31... Qxe3 {[%clk
0:01:36.7]} 32. fxe3 {[%clk 0:02:00]} 32... Ke7 {[%clk 0:01:36]} 33. h4 {[%clk
0:01:59.3]} 33... Kd6 {[%clk 0:01:35.9]} 34. Bg4 {[%clk 0:01:58]} 34... Bd7
{[%clk 0:01:35.3]} 35. Bxd7 {[%clk 0:01:53.9]} 35... Kxd7 {[%clk 0:01:35.3]} 36.
Kf3 {[%clk 0:01:54.2]} 36... Ke6 {[%clk 0:01:35.4]} 37. e4 {[%clk 0:01:53]}
37... f5 {[%clk 0:01:32.1]} 38. e5 {[%clk 0:01:48.9]} 38... g5 {[%clk
0:01:31.7]} 39. hxg5 {[%clk 0:01:43.8]} 39... hxg5 {[%clk 0:01:31.6]} 40. Ke2
{[%clk 0:01:42.1]} 40... Ke7 {[%clk 0:01:30.5]} 41. Kf2 {[%clk 0:01:42.3]} 41...
Ke6 {[%clk 0:01:30.7]} 42. Kg2 {[%clk 0:01:42.7]} 42... Ke7 {[%clk 0:01:30.8]}
43. Kh3 {[%clk 0:01:42.9]} 43... Ke6 {[%clk 0:01:30.7]} 44. g4 {[%clk
0:01:41.1]} 44... f4 {[%clk 0:01:30.1]} 45. Kg2 {[%clk 0:01:41.3]} 45... Ke7
{[%clk 0:01:30.3]} 46. Kf3 {[%clk 0:01:41.7]} 46... Ke6 {[%clk 0:01:30.4]} 47.
Ke2 {[%clk 0:01:42.1]} 47... Ke7 {[%clk 0:01:30.7]} 48. Kf3 {[%clk 0:01:42.4]}
48... Ke6 {[%clk 0:01:31.1]} 49. Ke2 {[%clk 0:01:42.7]} 49... Ke7 {[%clk
0:01:31.4]} 50. Kf2 {[%clk 0:01:42.7]} 50... Ke6 {[%clk 0:01:31.7]} 51. Kf3
{[%clk 0:01:42.4]} 51... Ke7 {[%clk 0:01:32]} 52. Kg2 {[%clk 0:01:33.4]} 52...
Ke6 {[%clk 0:01:32.1]} 53. Kh1 {[%clk 0:01:33.4]} 53... Ke7 {[%clk 0:01:32.2]}
54. Kg1 {[%clk 0:01:33.4]} 54... Ke6 {[%clk 0:01:32.5]} 55. Kf1 {[%clk
0:01:34.3]} 55... Ke7 {[%clk 0:01:32.6]} 56. Ke1 {[%clk 0:01:35.2]} 56... Ke6
{[%clk 0:01:32.8]} 57. Kd1 {[%clk 0:01:35.9]} 57... Ke7 {[%clk 0:01:33.2]} 58.
Kd2 {[%clk 0:01:36.3]} 58... Ke6 {[%clk 0:01:33.4]} 59. Ke1 {[%clk 0:01:36.8]}
59... Ke7 {[%clk 0:01:33.7]} 60. Kf2 {[%clk 0:01:37.7]} 60... Ke6 {[%clk
0:01:34]} 61. Kg2 {[%clk 0:01:31.5]} 61... Ke7 {[%clk 0:01:34.1]} 62. Kf3 {[%clk
0:01:31.9]} 1/2-1/2

[Event "Betsys MČR v online bleskovém šachu 2021"]
[Site "Chess.com"]
[Date "2021.04.17"]
[Round "5"]
[White "Ondre2836"]
[Black "jonvon640"]
[Result "0-1"]
[WhiteElo "1287"]
[BlackElo "1660"]
[TimeControl "180+1"]
[EndTime "9:45:43 PDT"]
[Termination "Uživatel jonvon640 zvítězil matem"]

1. e4 {[%clk 0:03:00.9]} 1... c5 {[%clk 0:02:55.7]} 2. Nf3 {[%clk 0:02:59.5]}
2... Nc6 {[%clk 0:02:53.9]} 3. d4 {[%clk 0:02:58.3]} 3... cxd4 {[%clk
0:02:54.8]} 4. Nxd4 {[%clk 0:02:57.1]} 4... e6 {[%clk 0:02:55.1]} 5. c4 {[%clk
0:02:55.7]} 5... Nf6 {[%clk 0:02:49.3]} 6. Nc3 {[%clk 0:02:54]} 6... Bb4 {[%clk
0:02:47]} 7. Be3 {[%clk 0:02:42.1]} 7... Nxe4 {[%clk 0:02:42.5]} 8. Qc2 {[%clk
0:02:23.2]} 8... Qa5 {[%clk 0:02:23]} 9. Bd2 {[%clk 0:02:15.2]} 9... Nxc3 {[%clk
0:01:48]} 10. Bxc3 {[%clk 0:02:13.4]} 10... Nxd4 {[%clk 0:01:43.8]} 11. Qd3
{[%clk 0:02:07.6]} 11... Bxc3+ {[%clk 0:01:35.9]} 12. bxc3 {[%clk 0:02:04.5]}
12... Qe5+ {[%clk 0:01:35.8]} 13. Kd1 {[%clk 0:02:01.7]} 13... Nc6 {[%clk
0:01:31]} 14. Be2 {[%clk 0:01:57.2]} 14... d5 {[%clk 0:01:29.7]} 15. cxd5 {[%clk
0:01:55.4]} 15... Qxd5 {[%clk 0:01:29.9]} 16. Qxd5 {[%clk 0:01:53]} 16... exd5
{[%clk 0:01:30.4]} 17. Kc2 {[%clk 0:01:52.4]} 17... Bf5+ {[%clk 0:01:27.2]} 18.
Kb3 {[%clk 0:01:49.5]} 18... Be6 {[%clk 0:01:26.7]} 19. Rad1 {[%clk 0:01:47.9]}
19... d4+ {[%clk 0:01:25.6]} 20. Kb2 {[%clk 0:01:47.9]} 20... dxc3+ {[%clk
0:01:24.6]} 21. Kxc3 {[%clk 0:01:48]} 21... O-O {[%clk 0:01:24.5]} 22. a4 {[%clk
0:01:45.8]} 22... Rfd8 {[%clk 0:01:24]} 23. Bb5 {[%clk 0:01:41.3]} 23... Rac8
{[%clk 0:01:21]} 24. Rhe1 {[%clk 0:01:33]} 24... a6 {[%clk 0:01:15.6]} 25. Bd3
{[%clk 0:01:27.7]} 25... Ne5+ {[%clk 0:01:11.2]} 26. Kb2 {[%clk 0:01:21.7]}
26... Rxd3 {[%clk 0:01:11.2]} 27. Rxd3 {[%clk 0:01:20.7]} 27... Nxd3+ {[%clk
0:01:12.1]} 28. Ka1 {[%clk 0:01:19.6]} 28... Nxe1 {[%clk 0:01:13]} 29. Kb1
{[%clk 0:01:17.7]} 29... Rc2 {[%clk 0:01:12.6]} 30. Ka1 {[%clk 0:01:16.7]} 30...
Ba2 {[%clk 0:01:09.7]} 31. a5 {[%clk 0:01:15.2]} 31... Nd3 {[%clk 0:01:05.9]}
32. f4 {[%clk 0:01:06.1]} 32... Nc5 {[%clk 0:01:04]} 33. g3 {[%clk 0:00:57]}
33... Nb3# {[%clk 0:01:04.9]} 0-1